fUST/lending_fUST_20250625
["ID","MTS","AMOUNT","RATE_DAILY","PERIOD"]
[367401446,1750783841450,-500.0,0.0001756,2]
[367401448,1750783841459,-500.0,0.00017588,2]
[367401450,1750783841469,-2391.0,0.00017588,2]
[367401452,1750783841478,-151.0,0.000176,2]
[367401454,1750783841487,-364.3438983,0.000176,2]
[367401456,1750783841496,-151.0,0.000176,2]
[367401458,1750783841505,-151.0,0.000176,2]
[367401460,1750783841515,-574.8597778,0.000176,2]
[367401462,1750783841523,-361.1741641,0.000176,2]
[367401464,1750783841533,-159.1692736,0.000176,2]
[367401466,1750783841544,-574.8597778,0.000176,2]
[367401468,1750783841553,-574.8597778,0.000176,2]
[367401470,1750783841563,-159.1692736,0.000176,2]
[367401472,1750783841572,-159.1692736,0.000176,2]
[367401474,1750783841582,-574.8597778,0.000176,2]
[367401476,1750783841592,-159.1692736,0.000176,2]
[367401478,1750783841601,-574.8597778,0.000176,2]
[367401480,1750783841610,-1149.7195556,0.000176,2]
[367401482,1750783841620,-159.1692736,0.000176,2]
[367401484,1750783841629,-159.1692736,0.000176,2]
[367401486,1750783841638,-4956.01291114,0.000176,2]
[367401488,1750783841648,-177.3826656,0.000176,2]
[367401490,1750783841657,-177.3826656,0.000176,2]
[367401492,1750783841667,-177.3826656,0.000176,2]
[367401494,1750783841675,-177.3826656,0.000176,2]
[367401496,1750783841684,-467.93763764,0.00017615,2]
[367401498,1750783841694,-11661.34714115,0.0001763,2]
[367401500,1750783841702,-151.0,0.000177,2]
[367401516,1750783841712,-151.0,0.000177,2]
[367401518,1750783841856,-151.0,0.000177,2]
[367401520,1750783841865,-151.0,0.000177,2]
[367401522,1750783841875,-152.378194,0.00017702,2]
[367401523,1750783841885,-152.378194,0.00017702,2]
[367401524,1750783841894,-188.518795,0.00017702,2]
[367401525,1750783841903,-188.518795,0.00017702,2]
[367401526,1750783841912,-171.18029,0.00017702,2]
[367401528,1750783841921,-171.18029,0.00017702,2]
[367401530,1750783841930,-195.974063,0.00017702,2]
[367401531,1750783841939,-195.974063,0.00017702,2]
[367401532,1750783841949,-2391.0,0.00017713,2]
[367401533,1750783841958,-4956.0129111,0.00017723,2]
[367401534,1750783841967,-2391.0,0.00017745,2]
[367401535,1750783841978,-2391.0,0.00017751,2]
[367401536,1750783841988,-61104.50333388,0.000178,3]
[367401537,1750783841997,-151.0,0.000178,2]
[367401538,1750783842007,-151.0,0.000178,2]
[367401539,1750783842015,-197.468572,0.000178,2]
[367401540,1750783842025,-197.468572,0.000178,2]
[367401541,1750783842034,-151.0,0.000178,2]
[367401542,1750783842044,-151.0,0.000178,2]
[367401543,1750783842054,-12556.00642039,0.000178,3]
[367401544,1750783842066,-846.68469334,0.000178,3]
[367401545,1750783842075,-524.15841286,0.000178,3]
[367401546,1750783842084,-267.883618,0.00017804,2]
[367401547,1750783842093,-267.883618,0.00017804,2]
[367401548,1750783842102,-452.28363129,0.00017804,2]
[367401549,1750783842111,-460.0,0.00017805,2]
[367401550,1750783842120,-460.0,0.00017805,2]
[367401551,1750783842129,-3236.48,0.00017805,2]
[367401552,1750783842139,-2249.35,0.00017805,2]
[367401553,1750783842148,-903.21,0.00017805,2]
[367401554,1750783842157,-460.0,0.00017805,2]
[367401555,1750783842166,-1722.8,0.00017805,2]
[367401556,1750783842175,-1997.56,0.00017805,2]
[367401557,1750783842184,-409.500606,0.00017805,2]
[367401558,1750783842193,-460.0,0.00017805,2]
[367401559,1750783842203,-3698.98,0.00017805,2]
[367401560,1750783842212,-598.06,0.00017805,2]
[367401561,1750783842221,-1442.19,0.00017805,2]
[367401562,1750783842230,-475.1791098,0.00017806,2]
[367401563,1750783842239,-460.0,0.00017806,2]
[367401564,1750783842252,-440.0,0.00017806,2]
[367401565,1750783842262,-460.0,0.00017806,2]
[367401566,1750783842271,-460.0,0.00017806,2]
[367401567,1750783842280,-460.0,0.00017806,2]
[367401568,1750783842290,-593.53,0.00017806,2]
[367401569,1750783842299,-716.3,0.00017806,2]
[367401570,1750783842308,-656.86,0.00017806,2]
[367401571,1750783842318,-902.22,0.00017806,2]
[367401572,1750783842328,-710.88,0.00017806,2]
[367401573,1750783842338,-2412.87,0.00017806,2]
[367401574,1750783842347,-460.0,0.00017806,2]
[367401575,1750783842356,-605.32,0.00017806,2]
[367401576,1750783842364,-970.8,0.00017806,2]
[367401577,1750783842372,-599.4,0.00017806,2]
[367401578,1750783842382,-905.82,0.00017806,2]
[367401579,1750783842392,-674.19,0.00017806,2]
[367401580,1750783842401,-460.0,0.00017806,2]
[367401581,1750783842410,-460.0,0.00017806,2]
[367401582,1750783842419,-460.0,0.00017806,2]
[367401583,1750783842428,-460.0,0.00017806,2]
[367401585,1750783842437,-205.18022097,0.00017806,2]
[367401586,1750783842446,-460.0,0.00017806,2]
[367401588,1750783842456,-574.8,0.00017806,2]
[367401590,1750783842465,-613.96,0.00017806,2]
[367401592,1750783842474,-578.76,0.00017806,2]
[367401594,1750783842483,-460.0,0.00017806,2]
[367401596,1750783842492,-1329.91,0.00017806,2]
[367401597,1750783842501,-460.0,0.00017807,2]
[367401598,1750783842510,-460.0,0.00017807,2]
[367401599,1750783842520,-460.0,0.00017807,2]
[367401600,1750783842530,-460.0,0.00017807,2]
[367401601,1750783842540,-447.90001521,0.00017807,2]
[367401602,1750783842549,-3899.68,0.00017807,2]
[367401603,1750783842559,-642.99,0.00017807,2]
[367401604,1750783842568,-695.01,0.00017807,2]
[367401605,1750783842578,-460.0,0.00017807,2]
[367401606,1750783842587,-684.89,0.00017807,2]
[367401607,1750783842596,-1983.06,0.00017807,2]
[367401608,1750783842606,-764.34,0.00017807,2]
[367401609,1750783842615,-460.0,0.00017807,2]
[367401610,1750783842624,-460.0,0.00017807,2]
[367401611,1750783842634,-1999.37,0.00017807,2]
[367401612,1750783842643,-187.20951857,0.00017807,2]
[367401613,1750783842652,-500.0,0.00017808,2]
[367401614,1750783842662,-151.0,0.00017808,2]
[367401615,1750783842671,-151.0,0.00017808,2]
[367401616,1750783842681,-397.704749,0.00017808,2]
[367401617,1750783842690,-397.704749,0.00017808,2]
[367401618,1750783842700,-152.378194,0.00017808,2]
[367401619,1750783842710,-152.378194,0.00017808,2]
[367401620,1750783842719,-188.518795,0.00017808,2]
[367401621,1750783842728,-188.518795,0.00017808,2]
[367401622,1750783842738,-197.468572,0.00017808,2]
[367401623,1750783842747,-197.468572,0.00017808,2]
[367401624,1750783842757,-171.18029,0.00017808,2]
[367401626,1750783842766,-171.18029,0.00017808,2]
[367401629,1750783842775,-460.0,0.00017808,2]
[367401630,1750783842785,-195.974063,0.00017808,2]
[367401632,1750783842795,-195.974063,0.00017808,2]
[367401633,1750783842804,-151.0,0.00017808,2]
[367401634,1750783842813,-460.0,0.00017808,2]
[367401635,1750783842823,-460.0,0.00017808,2]
[367401636,1750783842832,-151.0,0.00017808,2]
[367401637,1750783842841,-151.0,0.00017808,2]
[367401638,1750783842851,-457.148533,0.00017808,2]
[367401639,1750783842860,-460.0,0.00017808,2]
[367401640,1750783842869,-460.0,0.00017808,2]
[367401641,1750783842878,-460.0,0.00017808,2]
[367401642,1750783842888,-151.0,0.00017808,2]
[367401643,1750783842897,-151.0,0.00017808,2]
[367401644,1750783842908,-460.0,0.00017808,2]
[367401646,1750783842918,-460.0,0.00017808,2]
[367401648,1750783842927,-646.25,0.00017808,2]
[367401650,1750783842937,-460.0,0.00017808,2]
[367401653,1750783842946,-222.41303067,0.00017808,2]
[367401655,1750783842957,-460.0,0.00017808,2]
[367401657,1750783842966,-460.0,0.00017808,2]
[367401659,1750783842975,-151.0,0.00017808,2]
[367401660,1750783842986,-460.0,0.00017808,2]
[367401661,1750783842996,-151.0,0.00017808,2]
[367401662,1750783843005,-212.67043,0.00017808,2]
[367401663,1750783843015,-212.67043,0.00017808,2]
[367401664,1750783843024,-460.0,0.00017808,2]
[367401665,1750783843035,-460.0,0.00017808,2]
[367401666,1750783843045,-789.56,0.00017808,2]
[367401667,1750783843055,-467.62,0.00017808,2]
[367401668,1750783843064,-151.0,0.00017808,2]
[367401669,1750783843073,-508.86,0.00017808,2]
[367401671,1750783843083,-460.0,0.00017808,2]
[367401672,1750783843093,-694.67,0.00017808,2]
[367401673,1750783843102,-151.0,0.00017808,2]
[367401674,1750783843111,-151.0,0.00017808,2]
[367401675,1750783843121,-460.0,0.00017808,2]
[367401676,1750783843130,-243.88,0.00017808,2]
[367401677,1750783843140,-731.31,0.00017808,2]
[367401678,1750783843150,-603.13,0.00017808,2]
[367401679,1750783843159,-460.0,0.00017808,2]
[367401680,1750783843169,-273.046955,0.00017808,2]
[367401681,1750783843178,-1637.85,0.00017808,2]
[367401682,1750783843187,-1697.65,0.00017808,2]
[367401683,1750783843198,-460.0,0.00017808,2]
[367401684,1750783843207,-460.0,0.00017808,2]
[367401685,1750783843216,-234.024265,0.00017808,2]
[367401686,1750783843226,-2175.83,0.00017808,2]
[367401687,1750783843235,-234.024265,0.00017808,2]
[367401688,1750783843247,-460.0,0.00017808,2]
[367401689,1750783843257,-815.81,0.00017808,2]
[367401690,1750783843266,-1203.13,0.00017808,2]
[367401691,1750783843275,-460.0,0.00017808,2]
[367401692,1750783843285,-265.36895,0.00017808,2]
[367401693,1750783843295,-265.36895,0.00017808,2]
[367401694,1750783843304,-460.0,0.00017808,2]
[367401695,1750783843314,-151.0,0.00017808,2]
[367401696,1750783843323,-1476.23,0.00017808,2]
[367401697,1750783843333,-914.65,0.00017808,2]
[367401698,1750783843342,-564.19,0.00017808,2]
[367401699,1750783843351,-460.0,0.00017808,2]
[367401700,1750783843360,-498.25,0.00017808,2]
[367401701,1750783843370,-776.88,0.00017808,2]
[367401702,1750783843380,-337.0,0.00017817,2]
[367401703,1750783843390,-4956.0129111,0.00017845,2]
[367401704,1750783843400,-2391.0,0.00017869,2]
[367401705,1750783843409,-1113.54325148,0.00017876,2]
[367401706,1750783843420,-151.0,0.00017894,2]
[367401708,1750783843430,-151.0,0.00017894,2]
[367401709,1750783843439,-151.0,0.00017894,2]
[367401710,1750783843449,-151.0,0.00017894,2]
[367401711,1750783843458,-151.0,0.00017894,2]
[367401713,1750783843468,-151.0,0.00017894,2]
[367401715,1750783843478,-151.0,0.00017894,2]
[367401718,1750783843487,-151.0,0.00017894,2]
[367401720,1750783843496,-151.0,0.00017894,2]
[367401722,1750783843506,-244.37082,0.00017894,2]
[367401724,1750783843515,-151.0,0.00017894,2]
[367401725,1750783843525,-244.37082,0.00017894,2]
[367401726,1750783843534,-259.533192,0.00017894,2]
[367401729,1750783843544,-259.533192,0.00017894,2]
[367401731,1750783843553,-853.175134,0.00017894,2]
[367401733,1750783843563,-161.823595,0.00017894,2]
[367401735,1750783843572,-161.823595,0.00017894,2]
[367401736,1750783843582,-151.0,0.00017894,2]
[367401737,1750783843591,-151.0,0.00017894,2]
[367401738,1750783843601,-229.664431,0.00017894,2]
[367401739,1750783843610,-229.664431,0.00017894,2]
[367401740,1750783843621,-151.0,0.00017894,2]
[367401741,1750783843631,-151.0,0.00017894,2]
[367401742,1750783843640,-152.882946,0.00017894,2]
[367401743,1750783843649,-151.0,0.00017894,2]
[367401744,1750783843659,-733.286799,0.00017894,2]
[367401745,1750783843669,-151.153381,0.00017894,2]
[367401746,1750783843678,-151.0,0.00017894,2]
[367401747,1750783843688,-151.0,0.00017894,2]
[367401748,1750783843698,-205.523731,0.00017894,2]
[367401749,1750783843708,-205.523731,0.00017894,2]
[367401750,1750783843718,-151.0,0.00017894,2]
[367401751,1750783843727,-151.0,0.00017894,2]
[367401752,1750783843737,-151.0,0.00017894,2]
[367401753,1750783843747,-151.0,0.00017894,2]
[367401754,1750783843758,-291.396892,0.00017894,2]
[367401755,1750783843768,-291.396892,0.00017894,2]
[367401756,1750783843777,-151.0,0.00017894,2]
[367401757,1750783843787,-151.0,0.00017894,2]
[367401758,1750783843797,-151.0,0.00017894,2]
[367401759,1750783843807,-151.119738,0.00017894,2]
[367401760,1750783843816,-151.0,0.00017894,2]
[367401761,1750783843826,-151.0,0.00017894,2]
[367401762,1750783843835,-1453.194527,0.00017894,2]
[367401763,1750783843845,-1453.194527,0.00017894,2]
[367401764,1750783843854,-151.0,0.00017894,2]
[367401765,1750783843864,-212.377536,0.00017894,2]
[367401766,1750783843873,-212.377536,0.00017894,2]
[367401767,1750783843883,-978.278483,0.00017894,2]
[367401768,1750783843892,-978.278483,0.00017894,2]
[367401769,1750783843901,-151.0,0.00017894,2]
[367401770,1750783843910,-151.0,0.00017894,2]
[367401771,1750783843920,-151.0,0.00017894,2]
[367401772,1750783843929,-207.4,0.00017894,2]
[367401773,1750783843939,-1688.0,0.00017894,2]
[367401774,1750783843948,-500.0,0.00017894,2]
[367401775,1750783843957,-5000.0,0.00017894,2]
[367401776,1750783843967,-25000.0,0.00017894,2]
[367401777,1750783843977,-3472.04405695,0.00017894,2]
[367401778,1750783843986,-151.0,0.000179,2]
[367401779,1750783843995,-151.0,0.000179,2]
[367401780,1750783844004,-151.0,0.000179,2]
[367401781,1750783844014,-151.0,0.000179,2]
[367401782,1750783844024,-151.0,0.000179,2]
[367401783,1750783844033,-151.0,0.000179,2]
[367401784,1750783844043,-2391.0,0.00017928,2]
[367401785,1750783844053,-2391.0,0.0001793,2]
[367401786,1750783844062,-72026.36917598,0.00017936,2]
[367401787,1750783844072,-151.0,0.00017936,2]
[367401788,1750783844081,-151.0,0.00017936,2]
[367401789,1750783844090,-267.883618,0.00017936,2]
[367401790,1750783844100,-267.883618,0.00017936,2]
[367401791,1750783844109,-151.0,0.00017936,2]
[367401792,1750783844119,-197.468572,0.00017936,2]
[367401793,1750783844129,-197.468572,0.00017936,2]
[367401794,1750783844139,-151.0,0.00017936,2]
[367401795,1750783844149,-151.0,0.00017936,2]
[367401796,1750783844159,-151.0,0.00017936,2]
[367401797,1750783844169,-151.0,0.00017936,2]
[367401798,1750783844180,-151.0,0.00017936,2]
[367401799,1750783844189,-212.67043,0.00017936,2]
[367401800,1750783844198,-212.67043,0.00017936,2]
[367401801,1750783844207,-151.0,0.00017936,2]
[367401802,1750783844217,-151.0,0.00017936,2]
[367401803,1750783844226,-151.0,0.00017936,2]
[367401804,1750783844235,-151.0,0.00017936,2]
[367401805,1750783844246,-151.0,0.00017936,2]
[367401806,1750783844258,-151.0,0.00017936,2]
[367401807,1750783844270,-151.0,0.00017936,2]
[367401808,1750783844280,-234.024265,0.00017936,2]
[367401809,1750783844291,-151.0,0.00017936,2]
[367401810,1750783844300,-151.0,0.00017936,2]
[367401811,1750783844310,-234.024265,0.00017936,2]
[367401812,1750783844320,-151.0,0.00017936,2]
[367401813,1750783844329,-265.36895,0.00017936,2]
[367401814,1750783844339,-265.36895,0.00017936,2]
[367401815,1750783844349,-151.0,0.00017936,2]
[367401816,1750783844358,-212.377536,0.00017936,2]
[367401817,1750783844367,-212.377536,0.00017936,2]
[367401818,1750783844377,-151.0,0.00017936,2]
[367401819,1750783844386,-151.0,0.00017936,2]
[367401820,1750783844396,-1750.456,0.00017949,2]
[367401821,1750783844405,-4956.0129111,0.00017968,2]
[367401822,1750783844415,-152.378194,0.00017972,2]
[367401823,1750783844425,-152.378194,0.00017972,2]
[367401824,1750783844434,-800.0,0.00017972,2]
[367401825,1750783844443,-188.518795,0.00017976,2]
[367401826,1750783844453,-188.518795,0.00017976,2]
[367401827,1750783844462,-171.18029,0.00017976,2]
[367401828,1750783844471,-171.18029,0.00017976,2]
[367401829,1750783844481,-195.974063,0.00017976,2]
[367401830,1750783844491,-195.974063,0.00017976,2]
[367401831,1750783844500,-13422.00812118,0.00018,2]
[367401832,1750783844510,-2201.14529412,0.00018,2]
[367401833,1750783844519,-151.0,0.00018,2]
[367401834,1750783844529,-151.0,0.00018,2]
[367401835,1750783844538,-158.659334,0.00018,2]
[367401836,1750783844547,-166.51,0.00018,2]
[367401837,1750783844556,-166.51,0.00018,2]
[367401838,1750783844566,-733.286799,0.00018,2]
[367401839,1750783844575,-151.0,0.00018,2]
[367401840,1750783844585,-151.0,0.00018,2]
[367401841,1750783844595,-151.0,0.00018,2]
[367401842,1750783844605,-151.0,0.00018,2]
[367401843,1750783844615,-1453.194527,0.00018,2]
[367401844,1750783844625,-1453.194527,0.00018,2]
[367401845,1750783844634,-151.0,0.00018,2]
[367401846,1750783844644,-978.278483,0.00018,2]
[367401847,1750783844654,-978.278483,0.00018,2]
[367401848,1750783844663,-2475.350953,0.00018003,2]
[367401849,1750783844673,-151.0,0.00018003,2]
[367401850,1750783844683,-259.533192,0.00018003,2]
[367401851,1750783844693,-259.533192,0.00018003,2]
[367401852,1750783844703,-457.148533,0.00018003,2]
[367401853,1750783844713,-161.823595,0.00018003,2]
[367401854,1750783844723,-161.823595,0.00018003,2]
[367401855,1750783844733,-249.74445,0.00018003,2]
[367401856,1750783844743,-151.0,0.00018003,2]
[367401857,1750783844752,-229.664431,0.00018003,2]
[367401858,1750783844762,-229.664431,0.00018003,2]
[367401859,1750783844771,-205.523731,0.00018003,2]
[367401860,1750783844780,-205.523731,0.00018003,2]
[367401861,1750783844790,-291.396892,0.00018003,2]
[367401862,1750783844800,-291.396892,0.00018003,2]
[367401863,1750783844809,-2667.65083947,0.00018004,2]
[367401864,1750783844818,-151.0,0.00018004,2]
[367401865,1750783844827,-293.4643,0.00018004,2]
[367401866,1750783844836,-151.0,0.00018004,2]
[367401867,1750783844845,-151.0,0.00018004,2]
[367401868,1750783844854,-1815.222872,0.00018004,2]
[367401869,1750783844863,-2391.0,0.00018007,2]
[367401870,1750783844873,-189174.56790156,0.00018008,2]
[367401871,1750783844882,-151.0,0.00018008,2]
[367401872,1750783844892,-151.0,0.00018008,2]
[367401873,1750783844901,-151.0,0.00018008,2]
[367401874,1750783844910,-151.0,0.00018008,2]
[367401875,1750783845045,-151.0,0.00018008,2]
[367401876,1750783845056,-205.523731,0.00018008,2]
[367401877,1750783845065,-205.523731,0.00018008,2]
[367401878,1750783845074,-151.0,0.00018008,2]
[367401879,1750783845084,-234.024265,0.00018008,2]
[367401880,1750783845093,-151.0,0.00018008,2]
[367401881,1750783845103,-151.0,0.00018008,2]
[367401882,1750783845112,-234.024265,0.00018008,2]
[367401883,1750783845121,-151.0,0.00018008,2]
[367401884,1750783845130,-265.36895,0.00018008,2]
[367401885,1750783845139,-291.396892,0.00018008,2]
[367401886,1750783845149,-265.36895,0.00018008,2]
[367401887,1750783845158,-291.396892,0.00018008,2]
[367401888,1750783845167,-151.0,0.00018008,2]
[367401889,1750783845177,-151.0,0.00018008,2]
[367401890,1750783845186,-151.0,0.00018008,2]
[367401891,1750783845195,-151.0,0.00018008,2]
[367401892,1750783845204,-1453.194527,0.00018008,2]
[367401893,1750783845213,-1453.194527,0.00018008,2]
[367401894,1750783845222,-151.0,0.00018008,2]
[367401895,1750783845232,-212.377536,0.00018008,2]
[367401896,1750783845243,-212.377536,0.00018008,2]
[367401897,1750783845256,-978.278483,0.00018008,2]
[367401898,1750783845266,-978.278483,0.00018008,2]
[367401899,1750783845275,-151.0,0.00018008,2]
[367401900,1750783845284,-151.0,0.00018008,2]
[367401901,1750783845295,-2391.0,0.00018034,2]
[367401902,1750783845305,-151.66546,0.00018046,2]
[367401903,1750783845314,-151.0,0.00018046,2]
[367401904,1750783845324,-151.0,0.00018046,2]
[367401905,1750783845333,-151.0,0.00018046,2]
[367401906,1750783845343,-244.37082,0.00018046,2]
[367401907,1750783845354,-244.37082,0.00018046,2]
[367401908,1750783845363,-853.175134,0.00018046,2]
[367401909,1750783845373,-1882.38611826,0.00018059,2]
[367401910,1750783845383,-770.0,0.00018062,2]
[367401911,1750783845394,-500.0,0.00018073,2]
[367401912,1750783845408,-500.0,0.00018073,2]
[367401913,1750783845417,-500.0,0.00018073,2]
[367401914,1750783845426,-500.0,0.00018073,2]
[367401915,1750783845436,-500.0,0.00018073,2]
[367401916,1750783845446,-500.0,0.00018073,2]
[367401917,1750783845457,-460.0,0.00018079,2]
[367401918,1750783845468,-223.9003636,0.00018079,2]
[367401919,1750783845477,-3236.48,0.00018079,2]
[367401920,1750783845486,-2249.35,0.00018079,2]
[367401921,1750783845496,-903.21,0.00018079,2]
[367401922,1750783845507,-460.0,0.00018079,2]
[367401923,1750783845517,-1722.8,0.00018079,2]
[367401924,1750783845527,-1997.56,0.00018079,2]
[367401925,1750783845536,-460.0,0.00018079,2]
[367401926,1750783845548,-3698.98,0.00018079,2]
[367401927,1750783845557,-598.06,0.00018079,2]
[367401928,1750783845566,-1442.19,0.00018079,2]
[367401929,1750783845575,-460.0,0.0001808,2]
[367401930,1750783845584,-453.97221297,0.0001808,2]
[367401931,1750783845593,-460.0,0.0001808,2]
[367401932,1750783845602,-460.0,0.0001808,2]
[367401933,1750783845612,-593.53,0.0001808,2]
[367401934,1750783845621,-716.3,0.0001808,2]
[367401935,1750783845631,-656.86,0.0001808,2]
[367401936,1750783845641,-902.22,0.0001808,2]
[367401937,1750783845650,-710.88,0.0001808,2]
[367401938,1750783845659,-2412.87,0.0001808,2]
[367401939,1750783845669,-605.32,0.0001808,2]
[367401940,1750783845678,-460.0,0.0001808,2]
[367401941,1750783845688,-970.8,0.0001808,2]
[367401942,1750783845697,-599.4,0.0001808,2]
[367401943,1750783845707,-905.82,0.0001808,2]
[367401944,1750783845716,-674.19,0.0001808,2]
[367401945,1750783845725,-460.0,0.0001808,2]
[367401946,1750783845735,-460.0,0.0001808,2]
[367401948,1750783845745,-460.0,0.0001808,2]
[367401949,1750783845754,-460.0,0.0001808,2]
[367401950,1750783845765,-574.8,0.0001808,2]
[367401951,1750783845775,-460.0,0.0001808,2]
[367401952,1750783845784,-613.96,0.0001808,2]
[367401953,1750783845795,-578.76,0.0001808,2]
[367401954,1750783845804,-460.0,0.0001808,2]
[367401955,1750783845814,-1329.91,0.0001808,2]
[367401956,1750783845824,-460.0,0.00018081,2]
[367401957,1750783845833,-188.17404541,0.00018081,2]
[367401958,1750783845843,-460.0,0.00018081,2]
[367401959,1750783845852,-3899.68,0.00018081,2]
[367401960,1750783845863,-642.99,0.00018081,2]
[367401961,1750783845872,-460.0,0.00018081,2]
[367401962,1750783845881,-684.89,0.00018081,2]
[367401963,1750783845890,-1983.06,0.00018081,2]
[367401964,1750783845900,-764.34,0.00018081,2]
[367401965,1750783845909,-460.0,0.00018081,2]
[367401966,1750783845918,-460.0,0.00018081,2]
[367401967,1750783845927,-1999.37,0.00018081,2]
[367401968,1750783845937,-770.0,0.00018082,2]
[367401969,1750783845947,-500.0,0.00018082,2]
[367401970,1750783845956,-162.774165,0.00018082,2]
[367401971,1750783845965,-162.774165,0.00018082,2]
[367401972,1750783845974,-154.232959,0.00018082,2]
[367401973,1750783845984,-397.704749,0.00018082,2]
[367401974,1750783845994,-397.704749,0.00018082,2]
[367401975,1750783846004,-152.378194,0.00018082,2]
[367401976,1750783846013,-152.378194,0.00018082,2]
[367401977,1750783846022,-151.0,0.00018082,2]
[367401978,1750783846031,-188.518795,0.00018082,2]
[367401979,1750783846041,-188.518795,0.00018082,2]
[367401980,1750783846050,-197.468572,0.00018082,2]
[367401982,1750783846059,-197.468572,0.00018082,2]
[367401984,1750783846068,-151.0,0.00018082,2]
[367401986,1750783846077,-171.18029,0.00018082,2]
[367401988,1750783846086,-151.0,0.00018082,2]
[367401990,1750783846096,-171.18029,0.00018082,2]
[367401992,1750783846106,-460.0,0.00018082,2]
[367401994,1750783846115,-151.0,0.00018082,2]
[367401996,1750783846125,-151.0,0.00018082,2]
[367401998,1750783846133,-151.0,0.00018082,2]
[367402000,1750783846142,-151.0,0.00018082,2]
[367402002,1750783846151,-244.37082,0.00018082,2]
[367402003,1750783846160,-195.974063,0.00018082,2]
[367402005,1750783846169,-151.0,0.00018082,2]
[367402007,1750783846178,-195.974063,0.00018082,2]
[367402009,1750783846187,-244.37082,0.00018082,2]
[367402011,1750783846197,-259.533192,0.00018082,2]
[367402012,1750783846205,-460.0,0.00018082,2]
[367402014,1750783846216,-259.533192,0.00018082,2]
[367402016,1750783846225,-853.175134,0.00018082,2]
[367402018,1750783846234,-460.0,0.00018082,2]
[367402019,1750783846243,-151.0,0.00018082,2]
[367402021,1750783846256,-457.148533,0.00018082,2]
[367402023,1750783846265,-161.823595,0.00018082,2]
[367402025,1750783846276,-161.823595,0.00018082,2]
[367402027,1750783846286,-460.0,0.00018082,2]
[367402029,1750783846300,-460.0,0.00018082,2]
[367402031,1750783846309,-460.0,0.00018082,2]
[367402033,1750783846319,-151.0,0.00018082,2]
[367402035,1750783846328,-151.0,0.00018082,2]
[367402037,1750783846338,-460.0,0.00018082,2]
[367402039,1750783846347,-460.0,0.00018082,2]
[367402041,1750783846357,-646.25,0.00018082,2]
[367402043,1750783846368,-386.28,0.00018082,2]
[367402045,1750783846383,-483.05188416,0.00018082,2]
[367402047,1750783846398,-460.0,0.00018082,2]
[367402049,1750783846407,-151.0,0.00018082,2]
[367402051,1750783846417,-460.0,0.00018082,2]
[367402053,1750783846426,-229.664431,0.00018082,2]
[367402055,1750783846435,-212.67043,0.00018082,2]
[367402057,1750783846444,-151.0,0.00018082,2]
[367402059,1750783846453,-229.664431,0.00018082,2]
[367402061,1750783846462,-212.67043,0.00018082,2]
[367402063,1750783846471,-460.0,0.00018082,2]
[367402065,1750783846481,-460.0,0.00018082,2]
[367402067,1750783846489,-789.56,0.00018082,2]